fUST/lending_fUST_20240620
["ID","MTS","AMOUNT","RATE_DAILY","PERIOD"]
[329906189,1718817033682,-500.0,0.00024657,5]
[329906190,1718817033693,-500.0,0.00024657,5]
[329906191,1718817033702,-501.89900023,0.00024657,5]
[329906192,1718817033712,-500.0,0.00024657,5]
[329906193,1718817033722,-500.0,0.00024657,5]
[329906194,1718817033731,-500.0,0.00024657,5]
[329906195,1718817033741,-500.0,0.00024657,5]
[329906196,1718817033751,-500.0,0.00024657,5]
[329906197,1718817033761,-628.11,0.00024657,5]
[329906198,1718817033771,-500.0,0.00024657,5]
[329906199,1718817033780,-500.0,0.00024657,5]
[329906200,1718817033789,-500.0,0.00024657,5]
[329906201,1718817033799,-500.0,0.00024657,5]
[329906202,1718817033809,-500.0,0.00024657,5]
[329906203,1718817033819,-500.0,0.00024657,5]
[329906204,1718817033828,-500.0,0.00024657,5]
[329906205,1718817033838,-500.0,0.00024657,5]
[329906206,1718817033848,-500.0,0.00024657,5]
[329906207,1718817033859,-597.53081907,0.00024657,5]
[329906208,1718817033869,-500.0,0.00024657,5]
[329906209,1718817033879,-500.0,0.00024657,5]
[329906210,1718817033888,-351.46104683,0.00024657,5]
[329906211,1718817033898,-500.0,0.00024657,5]
[329906212,1718817033910,-523.83410348,0.00024657,5]
[329906213,1718817033920,-500.0,0.00024657,5]
[329906214,1718817033929,-500.0,0.00024657,5]
[329906215,1718817033939,-500.0,0.00024657,5]
[329906216,1718817033949,-500.0,0.00024657,5]
[329906217,1718817033959,-500.0,0.00024657,5]
[329906218,1718817033969,-500.0,0.00024657,5]
[329906219,1718817033978,-500.0,0.00024657,5]
[329906220,1718817033987,-500.0,0.00024657,5]
[329906221,1718817033996,-381.08094802,0.00024657,5]
[329906222,1718817034008,-500.0,0.00024657,5]
[329906223,1718817034017,-500.0,0.00024657,5]
[329906224,1718817034027,-500.0,0.00024657,5]
[329906225,1718817034036,-163.76706446,0.00024657,5]
[329906226,1718817034047,-500.0,0.00024657,5]
[329906227,1718817034057,-500.0,0.00024657,5]
[329906228,1718817034067,-500.0,0.00024657,5]
[329906229,1718817034076,-233.04299662,0.00024657,5]
[329906230,1718817034087,-500.0,0.00024657,5]
[329906231,1718817034098,-500.0,0.00024657,5]
[329906232,1718817034107,-500.0,0.00024657,5]
[329906233,1718817034117,-500.0,0.00024657,5]
[329906234,1718817034126,-613.86,0.00024657,5]
[329906235,1718817034135,-500.0,0.00024657,5]
[329906236,1718817034144,-500.0,0.00024657,5]
[329906237,1718817034153,-500.0,0.00024657,5]
[329906238,1718817034163,-501.46431987,0.00024657,5]
[329906239,1718817034172,-500.73140719,0.00024657,5]
[329906240,1718817034182,-501.04161835,0.00024657,5]
[329906241,1718817034192,-500.0,0.00024657,5]
[329906242,1718817034201,-500.0,0.00024657,5]
[329906243,1718817034211,-500.0,0.00024657,5]
[329906244,1718817034220,-500.0,0.00024657,5]
[329906245,1718817034229,-500.0,0.00024657,5]
[329906246,1718817034239,-500.0,0.00024657,5]
[329906247,1718817034249,-500.0,0.00024657,5]
[329906248,1718817034258,-617.65035699,0.00024657,5]
[329906249,1718817034267,-442.30976897,0.00024657,5]
[329906250,1718817034277,-259.18808423,0.00024657,5]
[329906251,1718817034286,-500.0,0.00024657,5]
[329906252,1718817034296,-500.0,0.00024657,5]
[329906253,1718817034305,-500.0,0.00024657,5]
[329906254,1718817034315,-500.0,0.00024657,5]
[329906255,1718817034324,-200.0,0.00024657,5]
[329906256,1718817034333,-831.93,0.00024657,5]
[329906257,1718817034342,-500.0,0.00024657,5]
[329906258,1718817034351,-500.0,0.00024657,5]
[329906259,1718817034360,-500.0,0.00024657,5]
[329906260,1718817034370,-500.0,0.00024657,5]
[329906261,1718817034379,-500.0,0.00024657,5]
[329906262,1718817034388,-500.0,0.00024657,5]
[329906263,1718817034397,-500.0,0.00024657,5]
[329906264,1718817034406,-500.0,0.00024657,5]
[329906265,1718817034415,-500.0,0.00024657,5]
[329906266,1718817034425,-500.0,0.00024657,5]
[329906267,1718817034434,-666.25,0.00024657,5]
[329906268,1718817034445,-364.93855267,0.00024657,5]
[329906269,1718817034454,-500.0,0.00024657,5]
[329906270,1718817034463,-500.0,0.00024657,5]
[329906271,1718817034471,-502.0582763,0.00024657,5]
[329906272,1718817034481,-500.0,0.00024657,5]
[329906273,1718817034491,-500.0,0.00024657,5]
[329906274,1718817034502,-500.0,0.00024657,5]
[329906275,1718817034511,-500.0,0.00024657,5]
[329906276,1718817034520,-500.0,0.00024657,5]
[329906277,1718817034529,-233.60934271,0.00024657,5]
[329906278,1718817034538,-500.0,0.00024657,5]
[329906279,1718817034548,-500.0,0.00024657,5]
[329906280,1718817034557,-506.70095639,0.00024657,5]
[329906281,1718817034566,-500.0,0.00024657,2]
[329906282,1718817034579,-500.0,0.00024657,5]
[329906283,1718817034588,-500.0,0.00024657,5]
[329906284,1718817034597,-500.92910979,0.00024657,5]
[329906285,1718817034607,-500.0,0.00024657,5]
[329906286,1718817034616,-321.65090509,0.00024657,5]
[329906287,1718817034625,-500.0,0.00024657,5]
[329906288,1718817034635,-500.0,0.00024657,5]
[329906289,1718817034644,-503.4368431,0.00024657,5]
[329906290,1718817034658,-500.0,0.00024657,5]
[329906291,1718817034667,-500.0,0.00024657,5]
[329906292,1718817034676,-500.0,0.00024657,5]
[329906293,1718817034685,-500.0,0.00024657,5]
[329906294,1718817034695,-109.79383899,0.00024657,5]
[329906295,1718817034714,-390.20616101,0.00024657,5]
[329906296,1718817034723,-500.0,0.00024657,5]
[329906297,1718817034732,-500.0,0.00024657,5]
[329906298,1718817034742,-500.0,0.00024657,5]
[329906299,1718817034752,-642.47,0.00024657,5]
[329906300,1718817034762,-175.08807928,0.00024657,5]
[329906301,1718817034771,-500.0,0.00024657,2]
[329906302,1718817034780,-500.0,0.00024657,5]
[329906303,1718817034789,-500.0,0.00024657,5]
[329906304,1718817034799,-500.0,0.00024657,5]
[329906305,1718817034808,-500.0,0.00024657,5]
[329906306,1718817034817,-293.23575971,0.00024657,5]
[329906364,1718817038010,-180.23568312,0.00024657,5]
[329906365,1718817038020,-500.0,0.00024657,5]
[329906366,1718817038030,-500.0,0.00024657,5]
[329906367,1718817038040,-500.0,0.00024657,5]
[329906368,1718817038049,-151.0,0.00024657,2]
[329906369,1718817038059,-442.42498212,0.00024657,5]
[329906370,1718817038071,-57.57501788,0.00024657,5]
[329906371,1718817038081,-151.0,0.00024657,2]
[329906372,1718817038091,-151.0,0.00024657,2]
[329906373,1718817038100,-167.057992,0.00024657,2]
[329906374,1718817038110,-500.0,0.00024657,5]
[329906375,1718817038120,-500.0,0.00024657,5]
[329906376,1718817038131,-500.0,0.00024657,5]
[329906377,1718817038140,-500.0,0.00024657,5]
[329906378,1718817038149,-441.68852078,0.00024657,5]
[329906379,1718817038159,-405.81445184,0.00024657,5]
[329906380,1718817038171,-94.18554816,0.00024657,5]
[329906381,1718817038182,-500.0,0.00024657,5]
[329906382,1718817038192,-500.0,0.00024657,5]
[329906383,1718817038202,-500.0,0.00024657,5]
[329906384,1718817038211,-217.36877462,0.00024657,5]
[329906385,1718817038221,-500.0,0.00024657,5]
[329906386,1718817038231,-500.0,0.00024657,5]
[329906387,1718817038240,-737.39,0.00024657,5]
[329906388,1718817038249,-500.0,0.00024657,5]
[329906389,1718817038258,-500.0,0.00024657,5]
[329906390,1718817038268,-500.0,0.00024657,5]
[329906391,1718817038277,-500.0,0.00024657,5]
[329906392,1718817038287,-500.0,0.00024657,5]
[329906394,1718817038296,-500.0,0.00024657,5]
[329906396,1718817038306,-1500.0,0.00024657,30]
[329906398,1718817038315,-500.0,0.00024657,5]
[329906399,1718817038324,-155.0,0.00024657,5]
[329906401,1718817038333,-500.0,0.00024657,5]
[329906403,1718817038343,-500.0,0.00024657,5]
[329906404,1718817038353,-500.0,0.00024657,5]
[329906405,1718817038362,-2298.14,0.00024657,5]
[329906406,1718817038371,-500.0,0.00024657,5]
[329906407,1718817038381,-500.0,0.00024657,5]
[329906408,1718817038390,-500.0,0.00024657,5]
[329906409,1718817038399,-500.0,0.00024657,5]
[329906410,1718817038408,-500.0,0.00024657,5]
[329906411,1718817038417,-516.20863492,0.00024657,5]
[329906412,1718817038427,-541.46171201,0.00024657,5]
[329906413,1718817038436,-500.0,0.00024657,5]
[329906414,1718817038447,-2041.35,0.00024657,5]
[329906415,1718817038456,-504.80158244,0.00024657,5]
[329906416,1718817038465,-520.47170318,0.00024657,5]
[329906417,1718817038475,-500.0,0.00024657,5]
[329906418,1718817038484,-500.0,0.00024657,5]
[329906419,1718817038494,-500.0,0.00024657,5]
[329906420,1718817038503,-500.0,0.00024657,5]
[329906421,1718817038512,-6040.44,0.00024657,5]
[329906422,1718817038522,-500.0,0.00024657,5]
[329906423,1718817038531,-500.0,0.00024657,5]
[329906424,1718817038540,-500.0,0.00024657,5]
[329906425,1718817038550,-500.0,0.00024657,5]
[329906426,1718817038560,-504.29842193,0.00024657,5]
[329906427,1718817038574,-729.79,0.00024657,5]
[329906428,1718817038584,-500.0,0.00024657,5]
[329906429,1718817038596,-500.0,0.00024657,5]
[329906430,1718817038607,-1998.66,0.00024657,5]
[329906431,1718817038617,-500.0,0.00024657,5]
[329906432,1718817038626,-6628.93,0.00024657,5]
[329906433,1718817038636,-500.0,0.00024657,5]
[329906434,1718817038648,-500.0,0.00024657,5]
[329906435,1718817038659,-500.0,0.00024657,5]
[329906436,1718817038669,-500.0,0.00024657,5]
[329906437,1718817038770,-444.66825364,0.00024657,5]
[329906438,1718817038780,-1325.32,0.00024657,5]
[329906439,1718817038790,-500.0,0.00024657,5]
[329906440,1718817038799,-250.0,0.00024657,5]
[329906441,1718817038808,-554.07,0.00024657,5]
[329906442,1718817038817,-500.0,0.00024657,5]
[329906443,1718817038827,-536.19,0.00024657,5]
[329906444,1718817038836,-500.0,0.00024657,5]
[329906445,1718817038846,-500.0,0.00024657,5]
[329906446,1718817038855,-500.0,0.00024657,5]
[329906447,1718817038864,-500.0,0.00024657,5]
[329906448,1718817038875,-500.0,0.00024657,5]
[329906449,1718817038884,-500.0,0.00024657,5]
[329906450,1718817038893,-500.0,0.00024657,5]
[329906451,1718817038902,-500.0,0.00024657,5]
[329906452,1718817038912,-500.0,0.00024657,5]
[329906453,1718817038922,-500.0,0.00024657,5]
[329906454,1718817038931,-500.0,0.00024657,5]
[329906455,1718817038941,-500.0,0.00024657,5]
[329906456,1718817038950,-500.0,0.00024657,5]
[329906457,1718817038959,-500.0,0.00024657,5]
[329906458,1718817038969,-500.0,0.00024657,5]
[329906459,1718817038978,-500.0,0.00024657,5]
[329906460,1718817038987,-500.0,0.00024657,5]
[329906461,1718817038996,-500.0,0.00024657,5]
[329906462,1718817039006,-500.0,0.00024657,5]
[329906463,1718817039015,-500.0,0.00024657,5]
[329906464,1718817039025,-151.0,0.00024657,2]
[329906465,1718817039035,-151.0,0.00024657,2]
[329906466,1718817039044,-151.0,0.00024657,2]
[329906467,1718817039054,-245.0,0.00024657,2]
[329906468,1718817039063,-500.0,0.00024657,5]
[329906469,1718817039073,-500.0,0.00024657,5]
[329906470,1718817039082,-500.0,0.00024657,5]
[329906471,1718817039093,-500.0,0.00024657,5]
[329906472,1718817039103,-500.0,0.00024657,5]
[329906473,1718817039114,-500.0,0.00024657,5]
[329906474,1718817039123,-500.0,0.00024657,5]
[329906475,1718817039133,-500.0,0.00024657,5]
[329906476,1718817039143,-3092.37,0.00024657,5]
[329906477,1718817039153,-500.0,0.00024657,5]
[329906478,1718817039163,-3281.35,0.00024657,5]
[329906479,1718817039173,-500.0,0.00024657,5]
[329906480,1718817039184,-500.0,0.00024657,5]
[329906481,1718817039195,-500.0,0.00024657,5]
[329906482,1718817039205,-7845.58,0.00024657,5]
[329906483,1718817039215,-500.0,0.00024657,5]
[329906484,1718817039225,-500.0,0.00024657,5]
[329906485,1718817039235,-500.0,0.00024657,5]
[329906486,1718817039244,-500.0,0.00024657,5]
[329906487,1718817039255,-500.0,0.00024657,5]
[329906488,1718817039265,-500.0,0.00024657,5]
[329906489,1718817039274,-500.0,0.00024657,5]
[329906490,1718817039284,-500.0,0.00024657,5]
[329906491,1718817039293,-500.0,0.00024657,5]
[329906492,1718817039303,-1870.24,0.00024657,5]
[329906493,1718817039312,-375.89791901,0.00024657,5]
[329906494,1718817039322,-500.0,0.00024657,5]
[329906495,1718817039331,-500.0,0.00024657,5]
[329906496,1718817039340,-500.0,0.00024657,5]
[329906497,1718817039349,-500.0,0.00024657,5]
[329906498,1718817039359,-504.89956341,0.00024657,5]
[329906499,1718817039368,-500.0,0.00024657,5]
[329906500,1718817039378,-2413.9,0.00024657,5]
[329906501,1718817039387,-511.82789799,0.00024657,5]
[329906502,1718817039396,-500.0,0.00024657,5]
[329906503,1718817039406,-500.0,0.00024657,5]
[329906504,1718817039415,-500.0,0.00024657,5]
[329906505,1718817039425,-500.0,0.00024657,5]
[329906506,1718817039434,-500.0,0.00024657,5]
[329906507,1718817039446,-500.0,0.00024657,5]
[329906508,1718817039456,-500.0,0.00024657,5]
[329906509,1718817039468,-500.0,0.00024657,5]
[329906510,1718817039477,-500.0,0.00024657,5]
[329906511,1718817039487,-1216.91,0.00024657,5]
[329906512,1718817039497,-500.0,0.00024657,5]
[329906513,1718817039507,-500.0,0.00024657,5]
[329906514,1718817039516,-500.0,0.00024657,5]
[329906515,1718817039526,-8401.64,0.00024657,5]
[329906516,1718817039537,-762.2,0.00024657,5]
[329906517,1718817039546,-500.0,0.00024657,5]
[329906518,1718817039556,-604.71022308,0.00024657,5]
[329906519,1718817039568,-425.32793565,0.00024657,5]
[329906520,1718817039581,-500.0,0.00024657,5]
[329906521,1718817039591,-500.0,0.00024657,5]
[329906522,1718817039601,-40.32427785,0.00024657,5]
[329906523,1718817039616,-459.67572215,0.00024657,5]
[329906524,1718817039626,-10.65176572,0.00024657,5]
[329906539,1718817040457,-489.34823428,0.00024657,5]
[329906540,1718817040467,-500.0,0.00024657,5]
[329906541,1718817040476,-500.0,0.00024657,5]
[329906542,1718817040486,-500.0,0.00024657,5]
[329906543,1718817040496,-500.0,0.00024657,5]
[329906544,1718817040505,-500.0,0.00024657,5]
[329906546,1718817040515,-500.0,0.00024657,5]
[329906548,1718817040524,-439.70153901,0.00024657,5]
[329906550,1718817040534,-500.0,0.00024657,5]
[329906552,1718817040544,-350.38127056,0.00024657,5]
[329906554,1718817040556,-2318.24872944,0.00024657,5]
[329906556,1718817040573,-500.0,0.00024657,5]
[329906558,1718817040583,-341.81915382,0.00024657,5]
[329906572,1718817043111,-1042.74084618,0.00024657,5]
[329906573,1718817043121,-500.0,0.00024657,5]
[329906574,1718817043131,-500.0,0.00024657,5]
[329906575,1718817043140,-500.0,0.00024657,5]
[329906576,1718817043149,-500.0,0.00024657,5]
[329906577,1718817043159,-500.0,0.00024657,5]
[329906578,1718817043169,-500.0,0.00024657,5]
[329906580,1718817043178,-525.81700409,0.00024657,5]
[329906582,1718817043188,-500.0,0.00024657,5]
[329906583,1718817043199,-500.0,0.00024657,5]
[329906585,1718817043209,-500.0,0.00024657,5]
[329906586,1718817043218,-500.0,0.00024657,5]
[329906587,1718817043227,-500.0,0.00024657,5]
[329906588,1718817043235,-500.0,0.00024657,5]
[329906589,1718817043244,-500.0,0.00024657,5]
[329906590,1718817043254,-500.0,0.00024657,5]
[329906591,1718817043263,-500.0,0.00024657,5]
[329906592,1718817043273,-500.0,0.00024657,5]
[329906593,1718817043283,-500.0,0.00024657,5]
[329906594,1718817043292,-500.0,0.00024657,5]
[329906595,1718817043302,-500.0,0.00024657,5]
[329906596,1718817043311,-500.0,0.00024657,5]
[329906597,1718817043320,-500.0,0.00024657,5]
[329906598,1718817043330,-500.0,0.00024657,5]
[329906599,1718817043340,-500.0,0.00024657,5]
[329906600,1718817043349,-500.0,0.00024657,5]
[329906602,1718817043358,-512.67587751,0.00024657,5]
[329906603,1718817043368,-500.0,0.00024657,5]
[329906604,1718817043377,-500.0,0.00024657,5]
[329906606,1718817043386,-489.76196364,0.00024657,5]
[329906607,1718817043395,-500.0,0.00024657,5]
[329906608,1718817043404,-500.0,0.00024657,5]
[329906609,1718817043414,-500.0,0.00024657,5]
[329906610,1718817043423,-500.0,0.00024657,5]
[329906611,1718817043432,-500.0,0.00024657,5]
[329906612,1718817043441,-257.49294633,0.00024657,5]
[329906613,1718817043452,-500.0,0.00024657,5]
[329906614,1718817043461,-957.09,0.00024657,5]
[329906615,1718817043470,-1006.65,0.00024657,5]
[329906616,1718817043479,-750.79,0.00024657,5]
[329906617,1718817043488,-500.0,0.00024657,5]
[329906618,1718817043498,-3274.87,0.00024657,5]
[329906619,1718817043508,-541.58591801,0.00024657,5]
[329906620,1718817043518,-505.37365697,0.00024657,5]
[329906621,1718817043527,-500.0,0.00024657,5]
[329906622,1718817043537,-500.0,0.00024657,5]
[329906623,1718817043546,-235.15178727,0.00024657,5]
[329906624,1718817043559,-264.84821273,0.00024657,5]
[329906625,1718817043570,-615.7,0.00024657,5]
[329906626,1718817043672,-500.0,0.00024657,5]
[329906627,1718817043682,-153.30180997,0.00024687,2]
[329906628,1718817043692,-1000.0,0.000247,2]
[329906629,1718817043703,-3582.20969779,0.00024731,7]
[329906630,1718817043715,-593.30760076,0.00024731,7]
[329906631,1718817043727,-1762.99069939,0.00024731,7]
[329906665,1718817046256,-285.0,0.00024656,2]
[329906666,1718817046266,-5761.4853225,0.00024731,7]
[329906667,1718817046276,-420.33869173,0.00024732,2]
[329906668,1718817046288,-262.32071986,0.00024777,2]
[329906669,1718817046298,-1003.29934623,0.00024794,30]
[329906670,1718817046309,-262.32071986,0.00024811,2]
[329906671,1718817046320,-262.32071986,0.00024837,2]
[329906672,1718817046329,-565.996,0.00024838,2]
[329906673,1718817046339,-166.76045536,0.00024845,4]
[329906674,1718817046349,-262.32071986,0.00024875,2]
[329906675,1718817046358,-593.0,0.000249,2]
[329906676,1718817046367,-160.0,0.0002493,2]
[329906677,1718817046376,-500.0,0.0002493,5]
[329906678,1718817046386,-500.0,0.0002493,5]
[329906679,1718817046397,-500.0,0.0002493,5]
[329906680,1718817046406,-500.0,0.00024931,5]
[329906681,1718817046417,-505.67910671,0.00024931,5]
[329906682,1718817046426,-12.95844368,0.00024931,5]
[329906684,1718817046439,-487.04155632,0.00024931,5]
[329906686,1718817046451,-500.0,0.00024931,5]
[329906687,1718817046460,-500.0,0.00024931,5]
[329906688,1718817046470,-500.0,0.00024931,5]
[329906689,1718817046479,-500.0,0.00024931,5]
[329906691,1718817046488,-500.0,0.00024931,5]
[329906693,1718817046498,-150.32156491,0.00024931,5]
[329906695,1718817046508,-500.0,0.00024931,5]
[329906696,1718817046517,-500.0,0.00024931,5]
[329906697,1718817046526,-500.0,0.00024931,5]
[329906698,1718817046536,-500.0,0.00024931,5]
[329906699,1718817046545,-500.0,0.00024931,5]
[329906700,1718817046555,-500.0,0.00024931,5]
[329906701,1718817046565,-628.11,0.00024931,5]
[329906702,1718817046577,-500.0,0.00024931,5]
[329906703,1718817046586,-502.41508248,0.00024931,5]
[329906704,1718817046595,-500.0,0.00024931,5]
[329906705,1718817046605,-506.21762361,0.00024931,5]
[329906706,1718817046615,-500.0,0.00024931,5]
[329906707,1718817046624,-500.0,0.00024931,5]
[329906708,1718817046634,-500.0,0.00024931,5]
[329906709,1718817046643,-500.0,0.00024931,5]
[329906710,1718817046653,-500.0,0.00024931,5]
[329906711,1718817046664,-500.0,0.00024931,5]
[329906712,1718817046673,-500.0,0.00024931,5]
[329906713,1718817046683,-500.0,0.00024931,5]
[329906714,1718817046695,-500.0,0.00024931,5]
[329906715,1718817046704,-500.0,0.00024931,5]
[329906716,1718817046714,-500.0,0.00024931,5]
[329906717,1718817046724,-500.0,0.00024931,5]
[329906718,1718817046734,-500.0,0.00024931,5]
[329906719,1718817046743,-500.0,0.00024931,5]
[329906720,1718817046752,-500.0,0.00024931,5]
[329906721,1718817046762,-500.0,0.00024931,5]
[329906722,1718817046772,-500.0,0.00024931,5]
[329906723,1718817046781,-500.0,0.00024931,5]
[329906724,1718817046792,-500.0,0.00024931,5]
[329906725,1718817046802,-613.86,0.00024931,5]
[329906726,1718817046812,-500.0,0.00024931,5]
[329906727,1718817046822,-500.0,0.00024931,5]
[329906728,1718817046831,-500.0,0.00024931,5]
[329906729,1718817046841,-268.47998586,0.00024931,5]
[329906730,1718817046850,-500.0,0.00024931,5]
[329906731,1718817046860,-500.0,0.00024931,5]
[329906732,1718817046869,-500.0,0.00024931,5]
[329906733,1718817046878,-500.0,0.00024931,5]
[329906734,1718817046888,-500.0,0.00024931,5]
[329906735,1718817046897,-500.0,0.00024931,5]
[329906736,1718817046907,-500.0,0.00024931,5]
[329906737,1718817046916,-200.0,0.00024931,5]
[329906738,1718817046925,-831.93,0.00024931,5]
[329906739,1718817046934,-500.0,0.00024931,5]
[329906740,1718817046944,-500.0,0.00024931,5]
[329906741,1718817046953,-500.0,0.00024931,5]
[329906742,1718817046961,-500.0,0.00024931,5]
[329906743,1718817046970,-251.67018763,0.00024931,5]
[329906744,1718817046979,-500.0,0.00024931,5]
[329906745,1718817046989,-500.0,0.00024931,5]
[329906746,1718817046998,-500.0,0.00024931,5]
[329906747,1718817047009,-666.25,0.00024931,5]
[329906748,1718817047018,-466.1037702,0.00024931,5]
[329906749,1718817047027,-500.0,0.00024931,5]
[329906750,1718817047037,-500.0,0.00024931,5]
[329906751,1718817047047,-403.15439122,0.00024931,5]
[329906752,1718817047060,-180.97616237,0.00024931,5]
[329906753,1718817047072,-500.0,0.00024931,5]
[329906754,1718817047081,-500.0,0.00024931,5]
[329906755,1718817047090,-647.558705,0.00024931,5]
[329906756,1718817047099,-500.0,0.00024931,5]
[329906757,1718817047108,-500.0,0.00024931,5]
[329906758,1718817047117,-500.0,0.00024931,5]
[329906759,1718817047127,-500.0,0.00024931,5]
[329906760,1718817047136,-500.0,0.00024931,5]
[329906761,1718817047146,-500.0,0.00024931,5]
[329906762,1718817047155,-500.0,0.00024931,5]
[329906763,1718817047165,-500.0,0.00024931,5]
[329906764,1718817047174,-500.0,0.00024931,5]
[329906765,1718817047183,-343.77018907,0.00024931,2]
[329906766,1718817047195,-156.22981093,0.00024931,2]
[329906767,1718817047204,-508.16738939,0.00024931,5]
[329906768,1718817047213,-500.0,0.00024931,5]
[329906769,1718817047222,-500.0,0.00024931,5]
[329906770,1718817047232,-500.0,0.00024931,5]
[329906771,1718817047242,-507.48708702,0.00024931,5]
[329906772,1718817047251,-500.0,0.00024931,5]
[329906773,1718817047261,-500.0,0.00024931,5]
[329906774,1718817047270,-511.07454243,0.00024931,5]
[329906775,1718817047279,-521.24480755,0.00024931,5]
[329906776,1718817047289,-500.0,0.00024931,5]
[329906777,1718817047298,-500.0,0.00024931,5]
[329906778,1718817047308,-500.0,0.00024931,5]
[329906779,1718817047317,-500.0,0.00024931,5]
[329906780,1718817047327,-737.39,0.00024931,5]
[329906781,1718817047336,-500.0,0.00024931,5]
[329906782,1718817047345,-501.91656576,0.00024931,5]
[329906783,1718817047354,-500.0,0.00024931,5]
[329906784,1718817047364,-500.0,0.00024931,5]
[329906785,1718817047373,-500.0,0.00024931,5]
[329906786,1718817047382,-320.90487386,0.00024931,5]
[329906787,1718817047391,-500.0,0.00024931,5]
[329906788,1718817047401,-2298.14,0.00024931,5]
[329906789,1718817047410,-500.0,0.00024931,5]
[329906790,1718817047419,-500.0,0.00024931,5]
[329906791,1718817047428,-500.0,0.00024931,5]
[329906792,1718817047438,-500.0,0.00024931,5]
[329906793,1718817047448,-2041.35,0.00024931,5]
[329906794,1718817047456,-500.0,0.00024931,5]
[329906795,1718817047465,-500.0,0.00024931,5]
[329906796,1718817047474,-503.94912556,0.00024931,5]
[329906797,1718817047483,-6040.44,0.00024931,5]
[329906798,1718817047492,-500.0,0.00024931,5]
[329906799,1718817047501,-500.0,0.00024931,5]
[329906800,1718817047510,-500.0,0.00024931,5]
[329906801,1718817047518,-729.79,0.00024931,5]
[329906802,1718817047527,-500.0,0.00024931,5]
[329906803,1718817047536,-500.0,0.00024931,5]
[329906804,1718817047545,-1998.66,0.00024931,5]
[329906805,1718817047554,-500.0,0.00024931,5]
[329906806,1718817047564,-6628.93,0.00024931,5]
[329906807,1718817047577,-500.0,0.00024931,5]
[329906808,1718817047586,-500.0,0.00024931,5]
[329906809,1718817047595,-500.0,0.00024931,5]
[329906810,1718817047604,-500.0,0.00024931,5]
[329906811,1718817047683,-1325.32,0.00024931,5]
[329906812,1718817047704,-363.85120663,0.00024931,5]
[329906813,1718817047713,-554.07,0.00024931,5]
[329906814,1718817047722,-536.19,0.00024931,5]
[329906815,1718817047731,-500.0,0.00024931,5]
[329906816,1718817047740,-500.0,0.00024931,5]
[329906817,1718817047750,-500.0,0.00024931,5]
[329906818,1718817047759,-504.0,0.00024931,5]
[329906819,1718817047767,-500.0,0.00024931,5]
[329906820,1718817047776,-500.0,0.00024931,5]
[329906821,1718817047785,-500.0,0.00024931,5]
[329906822,1718817047794,-500.0,0.00024931,5]
[329906823,1718817047803,-500.0,0.00024931,5]
[329906824,1718817047811,-500.0,0.00024931,5]
[329906825,1718817047820,-500.0,0.00024931,5]
[329906826,1718817047829,-323.93403992,0.00024931,5]
[329906827,1718817047838,-500.0,0.00024931,5]